fUSD/lending_fUSD_20240530
["ID","MTS","AMOUNT","RATE_DAILY","PERIOD"]
[328210285,1717060238445,-424.03366408,0.00028793,7]
[328210287,1717060238454,-500.0,0.00028793,7]
[328210289,1717060238464,-566.17,0.00028793,7]
[328210291,1717060238473,-500.0,0.00028793,7]
[328210293,1717060238482,-500.0,0.00028793,7]
[328210295,1717060238491,-500.0,0.00028793,7]
[328210297,1717060238501,-226.78197595,0.00028793,7]
[328210299,1717060238510,-564.86,0.00028793,7]
[328210301,1717060238520,-615.5811437,0.00028793,7]
[328210303,1717060238530,-938.17,0.00028793,7]
[328210305,1717060238539,-500.0,0.00028793,7]
[328210307,1717060238548,-500.0,0.00028793,7]
[328210309,1717060238562,-234.55170552,0.00028793,7]
[328210311,1717060238571,-352.46910566,0.00028793,7]
[328210313,1717060238581,-783.93,0.00028793,7]
[328210315,1717060238591,-373.584865,0.00028793,7]
[328210317,1717060238601,-500.0,0.00028793,7]
[328210319,1717060238611,-544.48,0.00028793,7]
[328210321,1717060238620,-3302.34,0.00028793,7]
[328210323,1717060238630,-500.0,0.00028793,7]
[328210325,1717060238640,-500.0,0.00028793,7]
[328210327,1717060238649,-811.96,0.00028793,7]
[328210329,1717060238658,-500.0,0.00028793,7]
[328210331,1717060238668,-500.0,0.00028793,7]
[328210333,1717060238677,-522.51778486,0.00028793,7]
[328210335,1717060238686,-500.0,0.00028793,7]
[328210336,1717060238696,-500.0,0.00028793,7]
[328210337,1717060238705,-500.0,0.00028793,7]
[328210338,1717060238714,-989.23,0.00028793,7]
[328210339,1717060238723,-752.1,0.00028793,7]
[328210340,1717060238733,-500.0,0.00028793,7]
[328210341,1717060238742,-500.0,0.00028793,7]
[328210342,1717060238752,-304.9368,0.00028793,7]
[328210343,1717060238762,-500.0,0.00028793,7]
[328210344,1717060238771,-500.0,0.00028793,7]
[328210345,1717060238780,-500.0,0.00028793,7]
[328210346,1717060238790,-500.0,0.00028793,7]
[328210347,1717060238799,-500.0,0.00028793,7]
[328210348,1717060238808,-764.5,0.00028793,7]
[328210349,1717060238818,-500.0,0.00028793,7]
[328210350,1717060238827,-500.0,0.00028793,7]
[328210351,1717060238837,-500.0,0.00028793,7]
[328210352,1717060238846,-1098.13,0.00028793,7]
[328210353,1717060238856,-804.42,0.00028793,7]
[328210354,1717060238865,-500.0,0.00028793,7]
[328210355,1717060238874,-500.0,0.00028793,7]
[328210356,1717060238884,-500.0,0.00028793,7]
[328210357,1717060238893,-500.0,0.00028793,7]
[328210358,1717060238902,-500.0,0.00028793,7]
[328210359,1717060238912,-1320.97,0.00028793,7]
[328210360,1717060238921,-264.006688,0.00028793,7]
[328210361,1717060238931,-500.0,0.00028793,7]
[328210362,1717060238940,-515.14,0.00028793,7]
[328210363,1717060238950,-500.0,0.00028793,7]
[328210364,1717060238959,-500.0,0.00028793,7]
[328210365,1717060238969,-500.0,0.00028793,7]
[328210366,1717060238979,-321.13167287,0.00028793,7]
[328210367,1717060238989,-500.0,0.00028793,7]
[328210368,1717060238998,-500.0,0.00028793,7]
[328210369,1717060239007,-500.0,0.00028793,7]
[328210370,1717060239016,-500.0,0.00028793,7]
[328210371,1717060239025,-500.0,0.00028793,7]
[328210372,1717060239035,-1544.03,0.00028793,7]
[328210373,1717060239045,-824.03,0.00028793,7]
[328210374,1717060239055,-500.0,0.00028793,7]
[328210375,1717060239064,-533.13576248,0.00028793,7]
[328210376,1717060239074,-1198.71,0.00028793,7]
[328210377,1717060239083,-365.57038939,0.00028793,7]
[328210378,1717060239093,-500.0,0.00028793,7]
[328210379,1717060239102,-500.0,0.00028793,7]
[328210380,1717060239112,-500.0,0.00028793,7]
[328210381,1717060239121,-500.0,0.00028793,7]
[328210382,1717060239130,-500.0,0.00028793,7]
[328210383,1717060239139,-500.0,0.00028793,7]
[328210384,1717060239149,-500.0,0.00028793,7]
[328210385,1717060239158,-1397.54,0.00028793,7]
[328210386,1717060239168,-500.0,0.00028793,7]
[328210387,1717060239177,-500.0,0.00028793,7]
[328210388,1717060239187,-500.0,0.00028793,7]
[328210389,1717060239197,-500.0,0.00028793,7]
[328210390,1717060239206,-500.0,0.00028793,7]
[328210391,1717060239216,-543.83,0.00028793,7]
[328210392,1717060239225,-643.48900753,0.00028793,7]
[328210393,1717060239235,-897.07,0.00028793,7]
[328210394,1717060239245,-500.0,0.00028793,7]
[328210395,1717060239254,-500.0,0.00028793,7]
[328210396,1717060239263,-500.0,0.00028793,7]
[328210397,1717060239272,-385.29362182,0.00028793,7]
[328210398,1717060239282,-500.0,0.00028793,7]
[328210399,1717060239291,-786.42,0.00028793,7]
[328210400,1717060239301,-500.0,0.00028793,7]
[328210401,1717060239310,-500.0,0.00028793,7]
[328210402,1717060239319,-500.0,0.00028793,7]
[328210403,1717060239329,-500.0,0.00028793,7]
[328210404,1717060239338,-500.0,0.00028793,7]
[328210405,1717060239347,-500.0,0.00028793,7]
[328210407,1717060239356,-262.60539923,0.00028793,7]
[328210408,1717060239365,-1352.39,0.00028793,7]
[328210409,1717060239375,-500.0,0.00028793,7]
[328210410,1717060239384,-500.0,0.00028793,7]
[328210411,1717060239393,-500.0,0.00028793,7]
[328210412,1717060239404,-921.13,0.00028793,7]
[328210413,1717060239413,-567.41,0.00028793,7]
[328210414,1717060239423,-500.0,0.00028793,7]
[328210415,1717060239432,-500.0,0.00028793,7]
[328210416,1717060239442,-442.81558022,0.00028793,7]
[328210417,1717060239452,-500.0,0.00028793,7]
[328210418,1717060239461,-500.0,0.00028793,7]
[328210419,1717060239471,-500.0,0.00028793,7]
[328210420,1717060239480,-500.0,0.00028793,7]
[328210421,1717060239490,-821.17,0.00028793,7]
[328210422,1717060239499,-500.0,0.00028793,7]
[328210423,1717060239508,-500.0,0.00028793,7]
[328210424,1717060239519,-500.0,0.00028793,7]
[328210425,1717060239528,-500.0,0.00028793,7]
[328210426,1717060239538,-500.0,0.00028793,7]
[328210427,1717060239548,-37780.094,0.00028794,2]
[328210428,1717060239562,-96121.6638,0.00028794,2]
[328210429,1717060239572,-163476.0455,0.00028794,2]
[328210430,1717060239582,-500.0,0.00028823,2]
[328210431,1717060239591,-517.85613029,0.00028823,2]
[328210432,1717060239602,-237.40951865,0.00028928,2]
[328210433,1717060239611,-1500.0,0.00028939,2]
[328210434,1717060239621,-400.0,0.00028942,2]
[328210435,1717060239631,-685.99590775,0.00028991,2]
[328210436,1717060239641,-500.0,0.00028991,7]
[328210437,1717060239652,-500.0,0.00028991,7]
[328210438,1717060239663,-500.0,0.00028991,7]
[328210439,1717060239673,-500.0,0.00028991,7]
[328210440,1717060239682,-500.0,0.00028991,7]
[328210441,1717060239691,-500.0,0.00028991,7]
[328210442,1717060239701,-500.0,0.00028991,7]
[328210443,1717060239711,-500.0,0.00028991,7]
[328210444,1717060239721,-500.0,0.00028991,7]
[328210445,1717060239731,-500.0,0.00028991,7]
[328210446,1717060239741,-500.0,0.00028991,7]
[328210447,1717060239751,-500.0,0.00028991,7]
[328210448,1717060239760,-424.20295082,0.00028991,7]
[328210449,1717060239770,-500.0,0.00028991,7]
[328210450,1717060239780,-500.0,0.00028991,7]
[328210451,1717060239789,-500.0,0.00028991,7]
[328210452,1717060239799,-500.0,0.00028991,7]
[328210453,1717060239808,-500.0,0.00028991,7]
[328210454,1717060239818,-500.0,0.00028991,7]
[328210455,1717060239827,-630.91,0.00028991,7]
[328210456,1717060239837,-500.0,0.00028991,7]
[328210457,1717060239846,-500.0,0.00028991,7]
[328210458,1717060239856,-500.0,0.00028991,7]
[328210459,1717060239866,-500.0,0.00028991,7]
[328210460,1717060239875,-500.0,0.00028991,7]
[328210461,1717060239885,-335.45045558,0.00028991,7]
[328210462,1717060239895,-610.67,0.00028991,7]
[328210463,1717060239904,-500.0,0.00028991,7]
[328210464,1717060239914,-500.0,0.00028991,7]
[328210465,1717060239924,-500.0,0.00028991,7]
[328210466,1717060239933,-500.0,0.00028991,7]
[328210467,1717060239944,-500.0,0.00028991,7]
[328210468,1717060239954,-500.0,0.00028991,7]
[328210469,1717060239963,-500.0,0.00028991,7]
[328210470,1717060239972,-500.0,0.00028992,7]
[328210471,1717060239982,-500.0,0.00028992,7]
[328210472,1717060239991,-500.0,0.00028992,7]
[328210473,1717060240001,-500.0,0.00028992,7]
[328210474,1717060240010,-500.0,0.00028992,7]
[328210475,1717060240020,-500.0,0.00028992,7]
[328210476,1717060240029,-444.15134165,0.00028992,7]
[328210477,1717060240038,-500.0,0.00028992,7]
[328210479,1717060240048,-500.0,0.00028992,7]
[328210480,1717060240057,-961.06,0.00028992,7]
[328210481,1717060240066,-500.0,0.00028992,7]
[328210482,1717060240076,-500.0,0.00028992,7]
[328210483,1717060240085,-500.0,0.00028992,7]
[328210484,1717060240094,-500.0,0.00028992,7]
[328210485,1717060240103,-500.0,0.00028992,7]
[328210486,1717060240113,-500.0,0.00028992,7]
[328210487,1717060240122,-565.5085765,0.00028992,7]
[328210490,1717060240132,-618.62630039,0.00028992,7]
[328210493,1717060240142,-500.0,0.00028992,7]
[328210496,1717060240151,-500.0,0.00028992,7]
[328210497,1717060240161,-611.87665288,0.00028992,7]
[328210498,1717060240170,-500.0,0.00028992,7]
[328210499,1717060240180,-500.0,0.00028992,7]
[328210500,1717060240189,-500.0,0.00028992,7]
[328210501,1717060240200,-500.0,0.00028992,2]
[328210502,1717060240209,-500.0,0.00028992,7]
[328210503,1717060240217,-500.0,0.00028992,7]
[328210504,1717060240226,-267.28228953,0.00028992,7]
[328210505,1717060240236,-500.0,0.00028992,7]
[328210506,1717060240246,-500.0,0.00028992,7]
[328210507,1717060240257,-500.0,0.00028992,7]
[328210508,1717060240266,-500.0,0.00028992,7]
[328210509,1717060240275,-542.78886454,0.00028992,7]
[328210510,1717060240285,-500.0,0.00028992,7]
[328210511,1717060240294,-500.0,0.00028992,7]
[328210512,1717060240304,-193.78150949,0.00028992,7]
[328210513,1717060240313,-500.0,0.00028992,7]
[328210514,1717060240323,-500.0,0.00028992,7]
[328210515,1717060240333,-500.0,0.00028992,7]
[328210516,1717060240343,-584.45117137,0.00028992,7]
[328210517,1717060240352,-500.0,0.00028992,7]
[328210518,1717060240362,-500.0,0.00028992,7]
[328210519,1717060240371,-500.0,0.00028992,7]
[328210520,1717060240381,-500.0,0.00028992,7]
[328210521,1717060240391,-500.0,0.00028992,7]
[328210522,1717060240400,-500.0,0.00028992,7]
[328210523,1717060240410,-500.0,0.00028992,2]
[328210524,1717060240420,-415.84922043,0.00028992,7]
[328210525,1717060240429,-500.0,0.00028992,7]
[328210526,1717060240439,-500.0,0.00028993,2]
[328210527,1717060240449,-199.8999,0.00028993,7]
[328210528,1717060240459,-500.0,0.00028993,7]
[328210529,1717060240469,-500.0,0.00028993,7]
[328210530,1717060240478,-500.0,0.00028994,7]
[328210531,1717060240488,-500.0,0.00029066,7]
[328210532,1717060240498,-470.13895499,0.00029066,7]
[328210533,1717060240508,-500.0,0.00029066,7]
[328210534,1717060240518,-500.0,0.00029066,7]
[328210535,1717060240527,-500.0,0.00029066,7]
[328210536,1717060240537,-500.0,0.00029066,7]
[328210537,1717060240547,-500.0,0.00029066,7]
[328210538,1717060240560,-500.0,0.00029066,7]
[328210539,1717060240570,-500.0,0.00029066,7]
[328210540,1717060240580,-500.0,0.00029066,7]
[328210541,1717060240590,-676.14,0.00029066,7]
[328210542,1717060240602,-500.0,0.00029066,7]
[328210543,1717060240612,-500.0,0.00029066,7]
[328210544,1717060240622,-182.54591193,0.00029066,7]
[328210545,1717060240632,-500.0,0.00029066,7]
[328210546,1717060240643,-968.58,0.00029066,7]
[328210547,1717060240653,-500.0,0.00029066,7]
[328210548,1717060240663,-500.0,0.00029066,7]
[328210549,1717060240673,-500.0,0.00029066,7]
[328210550,1717060240683,-500.0,0.00029066,7]
[328210551,1717060240695,-500.0,0.00029066,7]
[328210552,1717060240705,-500.0,0.00029066,7]
[328210553,1717060240715,-500.0,0.00029066,7]
[328210554,1717060240724,-500.0,0.00029066,7]
[328210555,1717060240734,-500.0,0.00029066,7]
[328210556,1717060240743,-353.97239413,0.00029066,7]
[328210557,1717060240755,-500.0,0.00029066,7]
[328210558,1717060240765,-170.76739821,0.00029066,7]
[328210559,1717060240775,-653.32,0.00029066,7]
[328210560,1717060240785,-500.0,0.00029066,7]
[328210561,1717060240795,-500.0,0.00029066,7]
[328210562,1717060240804,-500.0,0.00029066,7]
[328210563,1717060240814,-399.41870634,0.00029066,7]
[328210564,1717060240824,-500.0,0.00029066,7]
[328210565,1717060240833,-500.0,0.00029066,7]
[328210566,1717060240843,-2087.91,0.00029066,7]
[328210567,1717060240853,-500.0,0.00029066,7]
[328210568,1717060240862,-500.0,0.00029066,7]
[328210569,1717060240872,-314.18999526,0.00029066,7]
[328210570,1717060240882,-500.0,0.00029066,7]
[328210571,1717060240893,-500.0,0.00029066,7]
[328210572,1717060240902,-500.0,0.00029066,7]
[328210573,1717060240913,-500.0,0.00029066,7]
[328210574,1717060240922,-500.0,0.00029066,7]
[328210575,1717060240932,-522.1,0.00029066,7]
[328210576,1717060240944,-500.0,0.00029066,7]
[328210577,1717060240954,-500.0,0.00029066,7]
[328210578,1717060240964,-500.0,0.00029066,7]
[328210579,1717060240973,-623.37,0.00029067,7]
[328210580,1717060240983,-708.91,0.00029067,7]
[328210581,1717060240993,-500.0,0.00029067,7]
[328210582,1717060241002,-440.27156699,0.00029067,7]
[328210583,1717060241012,-599.6,0.00029067,7]
[328210584,1717060241022,-500.0,0.00029067,7]
[328210585,1717060241031,-547.7,0.00029067,7]
[328210586,1717060241041,-500.0,0.00029067,2]
[328210587,1717060241051,-500.0,0.00029067,7]
[328210588,1717060241060,-500.0,0.00029067,2]
[328210589,1717060241070,-885.17,0.00029067,7]
[328210590,1717060241080,-643.61,0.00029067,7]
[328210591,1717060241090,-500.0,0.00029067,7]
[328210592,1717060241100,-500.0,0.00029067,7]
[328210593,1717060241109,-500.0,0.00029067,7]
[328210594,1717060241119,-500.0,0.00029067,7]
[328210595,1717060241129,-704.54,0.00029067,7]
[328210596,1717060241139,-500.0,0.00029067,7]
[328210597,1717060241149,-500.0,0.00029067,7]
[328210598,1717060241160,-500.0,0.00029067,7]
[328210599,1717060241171,-500.0,0.00029067,7]
[328210600,1717060241182,-507.7,0.00029067,7]
[328210601,1717060241194,-500.0,0.00029067,7]
[328210602,1717060241204,-500.0,0.00029067,7]
[328210603,1717060241213,-500.0,0.00029067,7]
[328210604,1717060241223,-500.0,0.00029067,7]
[328210605,1717060241233,-500.0,0.00029067,7]
[328210606,1717060241242,-168.42226505,0.00029067,7]
[328210607,1717060241251,-956.01,0.00029067,7]
[328210608,1717060241260,-500.0,0.00029067,7]
[328210609,1717060241270,-500.0,0.00029067,7]
[328210610,1717060241279,-500.0,0.00029067,7]
[328210611,1717060241289,-500.0,0.00029067,7]
[328210612,1717060241298,-500.0,0.00029067,7]
[328210613,1717060241307,-500.0,0.00029067,7]
[328210614,1717060241315,-500.0,0.00029067,7]
[328210615,1717060241325,-500.0,0.00029067,7]
[328210616,1717060241333,-500.0,0.00029067,7]
[328210618,1717060241343,-500.0,0.00029067,7]
[328210619,1717060241353,-522.93833598,0.00029067,7]
[328210620,1717060241510,-150.0,0.00029067,7]
[328210621,1717060241545,-500.0,0.00029067,7]
[328210622,1717060241559,-500.0,0.00029067,7]
[328210623,1717060241569,-500.0,0.00029067,7]
[328210624,1717060241580,-500.0,0.00029067,7]
[328210625,1717060241589,-500.0,0.00029067,7]
[328210626,1717060241599,-500.0,0.00029067,7]
[328210627,1717060241609,-500.0,0.00029067,7]
[328210628,1717060241618,-704.96,0.00029067,7]
[328210629,1717060241629,-500.0,0.00029067,7]
[328210630,1717060241640,-500.0,0.00029067,7]
[328210631,1717060241650,-500.0,0.00029067,7]
[328210632,1717060241659,-566.17,0.00029067,7]
[328210633,1717060241671,-500.0,0.00029067,7]
[328210634,1717060241681,-586.821582,0.00029067,7]
[328210635,1717060241691,-500.0,0.00029067,7]
[328210636,1717060241701,-564.86,0.00029067,7]
[328210637,1717060241710,-938.17,0.00029067,7]
[328210638,1717060241724,-500.0,0.00029067,7]
[328210639,1717060241733,-500.0,0.00029067,7]
[328210640,1717060241743,-783.93,0.00029067,7]
[328210641,1717060241752,-500.0,0.00029067,7]
[328210642,1717060241762,-544.48,0.00029067,7]
[328210643,1717060241772,-3302.34,0.00029067,7]
[328210644,1717060241781,-500.0,0.00029067,7]
[328210645,1717060241791,-500.0,0.00029067,7]
[328210646,1717060241800,-811.96,0.00029067,7]
[328210647,1717060241810,-500.0,0.00029067,7]
[328210648,1717060241820,-500.0,0.00029067,7]
[328210649,1717060241829,-500.0,0.00029067,7]
[328210650,1717060241839,-500.0,0.00029067,7]
[328210651,1717060241848,-500.0,0.00029067,7]
[328210652,1717060241858,-989.23,0.00029067,7]
[328210653,1717060241868,-752.1,0.00029067,7]
[328210654,1717060241877,-500.0,0.00029067,7]
[328210655,1717060241887,-500.0,0.00029067,7]
[328210656,1717060241897,-500.0,0.00029067,7]
[328210657,1717060241906,-500.0,0.00029067,7]
[328210658,1717060241916,-500.0,0.00029067,7]
[328210659,1717060241925,-500.0,0.00029067,7]
[328210660,1717060241936,-500.0,0.00029067,7]
[328210661,1717060241947,-764.5,0.00029067,7]
[328210662,1717060241956,-500.0,0.00029067,7]
[328210663,1717060241966,-500.0,0.00029067,7]
[328210664,1717060241977,-500.0,0.00029067,7]
[328210665,1717060241987,-1098.13,0.00029067,7]
[328210666,1717060241997,-804.42,0.00029067,7]
[328210667,1717060242006,-500.0,0.00029067,7]
[328210668,1717060242015,-422.98565031,0.00029067,7]
[328210669,1717060242025,-500.0,0.00029067,7]
[328210670,1717060242034,-500.0,0.00029067,7]
[328210671,1717060242043,-500.0,0.00029067,7]
[328210672,1717060242053,-1320.97,0.00029067,7]
[328210673,1717060242062,-500.0,0.00029067,7]
[328210674,1717060242072,-515.14,0.00029067,7]
[328210675,1717060242081,-500.0,0.00029067,7]
[328210676,1717060242090,-500.0,0.00029067,7]
[328210677,1717060242099,-500.0,0.00029067,7]
[328210678,1717060242108,-500.0,0.00029067,7]
[328210679,1717060242118,-500.0,0.00029067,7]
[328210680,1717060242129,-500.0,0.00029067,7]
[328210681,1717060242139,-500.0,0.00029067,7]
[328210682,1717060242149,-500.0,0.00029067,7]
[328210683,1717060242159,-1544.03,0.00029067,7]
[328210684,1717060242168,-824.03,0.00029067,7]
[328210685,1717060242177,-500.0,0.00029067,7]
[328210686,1717060242187,-1198.71,0.00029067,7]
[328210687,1717060242198,-441.31787594,0.00029067,7]
[328210688,1717060242208,-500.0,0.00029067,7]
[328210689,1717060242217,-500.0,0.00029067,7]
[328210690,1717060242227,-500.0,0.00029067,7]
[328210691,1717060242236,-500.0,0.00029067,7]
[328210692,1717060242245,-500.0,0.00029067,7]
[328210693,1717060242255,-589.32516266,0.00029067,7]
[328210694,1717060242266,-1397.54,0.00029067,7]
[328210695,1717060242276,-500.0,0.00029067,7]
[328210696,1717060242286,-500.0,0.00029067,7]
[328210697,1717060242296,-500.0,0.00029067,7]
[328210698,1717060242305,-500.0,0.00029067,7]
[328210699,1717060242315,-558.29989634,0.00029067,7]
[328210700,1717060242325,-543.83,0.00029067,7]
[328210701,1717060242334,-897.07,0.00029067,7]
[328210702,1717060242352,-500.0,0.00029067,7]
[328210703,1717060242364,-500.0,0.00029067,7]
[328210704,1717060242374,-393.45534484,0.00029067,7]
[328210705,1717060242384,-500.0,0.00029067,7]
[328210706,1717060242394,-786.42,0.00029067,7]
[328210707,1717060242404,-500.0,0.00029067,7]
[328210708,1717060242415,-500.0,0.00029067,7]
[328210709,1717060242426,-500.0,0.00029067,7]
[328210710,1717060242437,-500.0,0.00029067,7]
[328210711,1717060242450,-500.0,0.00029067,7]
[328210712,1717060242460,-500.0,0.00029067,7]
[328210713,1717060242471,-1352.39,0.00029067,7]
[328210714,1717060242481,-500.0,0.00029067,7]
[328210715,1717060242491,-500.0,0.00029067,7]
[328210716,1717060242501,-500.0,0.00029067,7]
[328210717,1717060242512,-921.13,0.00029067,7]
[328210718,1717060242525,-567.41,0.00029067,7]
[328210719,1717060242535,-500.0,0.00029067,7]
[328210720,1717060242546,-500.0,0.00029067,7]
[328210721,1717060242560,-500.0,0.00029067,7]
[328210722,1717060242571,-500.0,0.00029067,7]
[328210723,1717060242581,-334.97442995,0.00029067,7]
[328210724,1717060242592,-500.0,0.00029067,7]
[328210725,1717060242603,-821.17,0.00029067,7]
[328210726,1717060242615,-500.0,0.00029067,7]
[328210727,1717060242625,-500.0,0.00029067,7]
[328210728,1717060242635,-500.0,0.00029067,7]
[328210729,1717060242644,-500.0,0.00029067,7]
[328210730,1717060242654,-500.0,0.00029067,7]
[328210731,1717060242663,-1500.0,0.00029089,2]
[328210732,1717060242673,-1500.0,0.00029094,2]
[328210733,1717060242683,-237.40951865,0.00029163,2]
[328210734,1717060242695,-1311.79661552,0.00029193,2]
[328210735,1717060242705,-5949.82783055,0.00029193,2]
[328210736,1717060242715,-1500.0,0.00029211,2]
[328210737,1717060242725,-1500.0,0.00029212,2]
[328210738,1717060242734,-2573.35,0.00029237,2]
[328210739,1717060242745,-500.0,0.00029265,7]
[328210740,1717060242755,-500.0,0.00029265,7]
[328210741,1717060242765,-500.0,0.00029265,7]
[328210742,1717060242775,-500.0,0.00029265,7]
[328210743,1717060242785,-500.0,0.00029265,7]
[328210744,1717060242795,-500.0,0.00029265,7]
[328210745,1717060242806,-500.0,0.00029265,7]
[328210746,1717060242817,-500.0,0.00029265,7]
[328210747,1717060242827,-500.0,0.00029265,7]
[328210748,1717060242836,-500.0,0.00029265,7]
[328210749,1717060242846,-535.38302781,0.00029265,7]
[328210750,1717060242856,-500.0,0.00029265,7]
[328210751,1717060242866,-500.0,0.00029265,7]
[328210752,1717060242876,-500.0,0.00029265,7]
[328210753,1717060242886,-500.0,0.00029265,7]
[328210754,1717060242896,-500.0,0.00029265,7]
[328210755,1717060242908,-500.0,0.00029265,7]
[328210756,1717060242918,-500.0,0.00029265,7]
[328210757,1717060242928,-591.45536154,0.00029265,7]
[328210758,1717060242938,-500.0,0.00029265,7]
[328210759,1717060242950,-500.0,0.00029265,7]
[328210760,1717060242960,-500.0,0.00029265,7]
[328210761,1717060242973,-610.67,0.00029265,7]
[328210762,1717060242983,-500.0,0.00029265,7]
[328210763,1717060242993,-500.0,0.00029265,7]
[328210764,1717060243003,-500.0,0.00029265,7]
[328210765,1717060243013,-500.0,0.00029265,7]
[328210766,1717060243024,-500.0,0.00029265,7]
[328210767,1717060243034,-500.0,0.00029265,7]
[328210768,1717060243044,-500.0,0.00029265,7]
[328210769,1717060243054,-500.0,0.00029266,7]
[328210770,1717060243064,-500.0,0.00029266,7]
[328210771,1717060243074,-500.0,0.00029266,7]
[328210772,1717060243084,-500.0,0.00029266,7]
[328210773,1717060243095,-500.0,0.00029266,7]
[328210774,1717060243105,-530.96418707,0.00029266,7]
[328210775,1717060243115,-500.0,0.00029266,7]
[328210776,1717060243125,-500.0,0.00029266,7]
[328210777,1717060243135,-961.06,0.00029266,7]
[328210778,1717060243147,-500.0,0.00029266,7]
[328210779,1717060243158,-500.0,0.00029266,7]
[328210780,1717060243167,-196.93462042,0.00029266,7]
[328210781,1717060243177,-540.11473687,0.00029266,7]
[328210782,1717060243187,-500.0,0.00029266,7]
[328210783,1717060243198,-563.23656213,0.00029266,7]
[328210784,1717060243207,-500.0,0.00029266,7]
[328210785,1717060243216,-500.0,0.00029266,7]
[328210786,1717060243226,-500.0,0.00029266,7]
[328210787,1717060243235,-500.0,0.00029266,7]
[328210788,1717060243245,-549.74013697,0.00029266,7]
[328210789,1717060243254,-500.0,0.00029266,2]
[328210790,1717060243264,-500.0,0.00029266,7]
[328210791,1717060243273,-500.0,0.00029266,7]
[328210792,1717060243283,-500.0,0.00029266,7]
[328210793,1717060243292,-500.0,0.00029266,7]
[328210794,1717060243302,-500.0,0.00029266,7]
[328210795,1717060243312,-518.43,0.00029266,7]
[328210796,1717060243321,-500.0,0.00029266,7]
[328210797,1717060243330,-500.0,0.00029266,7]
[328210798,1717060243340,-500.0,0.00029266,7]
[328210800,1717060243350,-500.0,0.00029266,7]
[328210801,1717060243360,-500.0,0.00029266,7]
[328210802,1717060243369,-435.0522583,0.00029266,7]
[328210803,1717060243379,-500.0,0.00029266,7]
[328210804,1717060243388,-500.0,0.00029266,7]
[328210805,1717060243398,-500.0,0.00029266,7]
[328210806,1717060243407,-500.0,0.00029266,7]
[328210807,1717060243419,-500.0,0.00029266,7]
[328210808,1717060243428,-500.0,0.00029266,2]
[328210809,1717060243438,-545.63520621,0.00029266,7]
[328210810,1717060243448,-500.0,0.00029266,7]
[328210811,1717060243458,-500.0,0.00029266,7]
[328210812,1717060243469,-500.0,0.00029266,7]
[328210813,1717060243479,-500.0,0.00029267,2]
[328210814,1717060243489,-2343.36758848,0.00029268,2]
[328210815,1717060243499,-1500.0,0.00029292,2]
[328210816,1717060243509,-2909.36,0.00029306,2]
[328210817,1717060243519,-150.0,0.00029313,2]
[328210818,1717060243529,-150.0,0.00029317,2]
[328210819,1717060243538,-500.0,0.0002934,2]